[Event "Early-Titled-Tuesday-Blitz-February-20-2024"]
[Site "Chess.com"]
[Date "2024.02.20"]
[Round "3"]
[White "Karttunen"]
[Black "Durarbayli"]
[Result "0-1"]
[WhiteElo "2671"]
[BlackElo "2971"]
[TimeControl "180+1"]
[EndTime "8:30:37 PST"]
[Termination "Durarbayli won by resignation"]

1. e4 {[%clk 0:03:00.9]} 1... c5 {[%clk 0:03:00]} 2. Nf3 {[%clk 0:03:00.7]} 2...
d6 {[%clk 0:03:00.4]} 3. d4 {[%clk 0:03:00.6]} 3... cxd4 {[%clk 0:03:01.3]} 4.
Nxd4 {[%clk 0:03:01.1]} 4... Nf6 {[%clk 0:03:02]} 5. Nc3 {[%clk 0:03:01.7]} 5...
Nc6 {[%clk 0:03:00.4]} 6. Bg5 {[%clk 0:02:59.6]} 6... Qb6 {[%clk 0:03:00.4]} 7.
Nb3 {[%clk 0:02:47.2]} 7... e6 {[%clk 0:02:59.8]} 8. Be3 {[%clk 0:02:35.1]} 8...
Qc7 {[%clk 0:02:58.7]} 9. Be2 {[%clk 0:02:33.3]} 9... a6 {[%clk 0:02:58.7]} 10.
a4 {[%clk 0:02:29.5]} 10... Be7 {[%clk 0:02:56.7]} 11. a5 {[%clk 0:02:26.5]}
11... O-O {[%clk 0:02:56.3]} 12. Bb6 {[%clk 0:02:24]} 12... Qb8 {[%clk
0:02:55.1]} 13. O-O {[%clk 0:02:23.2]} 13... Nd7 {[%clk 0:02:54.8]} 14. Be3
{[%clk 0:02:22.9]} 14... b5 {[%clk 0:02:50.6]} 15. f4 {[%clk 0:02:16.5]} 15...
Bb7 {[%clk 0:02:34.7]} 16. Bf3 {[%clk 0:01:53.1]} 16... Qd8 {[%clk 0:02:31.8]}
17. Qd2 {[%clk 0:01:41.4]} 17... Rc8 {[%clk 0:02:31.5]} 18. Kh1 {[%clk 0:01:40]}
18... Re8 {[%clk 0:02:30.6]} 19. Qf2 {[%clk 0:01:31.8]} 19... Bf8 {[%clk
0:02:22.3]} 20. Rfd1 {[%clk 0:01:29.4]} 20... Nb4 {[%clk 0:02:01]} 21. Nd4
{[%clk 0:01:17.8]} 21... Rc4 {[%clk 0:01:54.3]} 22. Be2 {[%clk 0:01:06.4]} 22...
Rxd4 {[%clk 0:01:44.5]} 23. Bxd4 {[%clk 0:00:59.3]} 23... Nxc2 {[%clk
0:01:45.4]} 24. Rac1 {[%clk 0:00:50.3]} 24... Nxd4 {[%clk 0:01:45]} 25. Qxd4
{[%clk 0:00:50.7]} 25... Qxa5 {[%clk 0:01:45.5]} 26. b4 {[%clk 0:00:49]} 26...
Qd8 {[%clk 0:01:42]} 27. Bf3 {[%clk 0:00:47.5]} 27... Nb6 {[%clk 0:01:39.7]} 28.
Be2 {[%clk 0:00:39.5]} 28... g6 {[%clk 0:01:25.4]} 29. e5 {[%clk 0:00:39.6]}
29... d5 {[%clk 0:01:17.5]} 30. Ne4 {[%clk 0:00:38.4]} 30... Be7 {[%clk
0:01:11]} 31. Nf6+ {[%clk 0:00:33.7]} 31... Bxf6 {[%clk 0:01:11]} 32. exf6
{[%clk 0:00:34.6]} 32... Nd7 {[%clk 0:01:11.2]} 33. Qa7 {[%clk 0:00:33.4]} 33...
Qb8 {[%clk 0:00:55.4]} 34. Qd4 {[%clk 0:00:33.5]} 34... Qd8 {[%clk 0:00:54.4]}
35. Qa7 {[%clk 0:00:33.3]} 35... Qb8 {[%clk 0:00:41.3]} 36. Qd4 {[%clk
0:00:33.2]} 36... e5 {[%clk 0:00:31.5]} 37. fxe5 {[%clk 0:00:33.3]} 37... Rxe5
{[%clk 0:00:32.4]} 38. Bf3 {[%clk 0:00:33]} 38... Nxf6 {[%clk 0:00:31.4]} 39.
Qb6 {[%clk 0:00:30.1]} 39... Re6 {[%clk 0:00:22.5]} 40. Qc7 {[%clk 0:00:30.1]}
40... Qa8 {[%clk 0:00:20.2]} 41. h3 {[%clk 0:00:26.2]} 41... h5 {[%clk
0:00:19.7]} 42. Re1 {[%clk 0:00:25.6]} 42... Ne4 {[%clk 0:00:18.6]} 43. Bxe4
{[%clk 0:00:23.9]} 43... dxe4 {[%clk 0:00:19.1]} 44. Qd7 {[%clk 0:00:23.7]}
44... Bc6 {[%clk 0:00:13.8]} 45. Qd4 {[%clk 0:00:21.1]} 45... e3 {[%clk
0:00:13.8]} 46. Rc2 {[%clk 0:00:20.9]} 46... Re4 {[%clk 0:00:08.7]} 47. Qc5
{[%clk 0:00:20.8]} 47... Rc4 {[%clk 0:00:08.1]} 48. Rxc4 {[%clk 0:00:18.2]}
48... Bxg2+ {[%clk 0:00:08.5]} 49. Kg1 {[%clk 0:00:18.1]} 49... bxc4 {[%clk
0:00:08.6]} 50. Qxe3 {[%clk 0:00:17.7]} 50... Bc6 {[%clk 0:00:07]} 51. Rc1
{[%clk 0:00:15.4]} 51... Qd8 {[%clk 0:00:04.1]} 52. Rxc4 {[%clk 0:00:14]} 52...
Qd5 {[%clk 0:00:04.3]} 53. Rxc6 {[%clk 0:00:09.7]} 53... Qxc6 {[%clk 0:00:05.2]}
54. Qd4 {[%clk 0:00:09]} 54... Qb5 {[%clk 0:00:05.7]} 55. Kf2 {[%clk 0:00:09.3]}
55... Qf5+ {[%clk 0:00:05.5]} 56. Kg3 {[%clk 0:00:09.3]} 56... Qe6 {[%clk
0:00:05]} 57. Qd8+ {[%clk 0:00:09.2]} 57... Kh7 {[%clk 0:00:05.6]} 58. Qd4
{[%clk 0:00:09.2]} 58... Qf5 {[%clk 0:00:04.6]} 59. Qb6 {[%clk 0:00:07.6]} 59...
Qe6 {[%clk 0:00:05.5]} 60. Qc5 {[%clk 0:00:07.1]} 60... g5 {[%clk 0:00:06.1]}
61. Qxg5 {[%clk 0:00:06.9]} 61... Qd6+ {[%clk 0:00:05.9]} 62. Kh4 {[%clk
0:00:06.4]} 62... Qxb4+ {[%clk 0:00:06]} 63. Kxh5 {[%clk 0:00:07]} 63... Qd6
{[%clk 0:00:06.6]} 64. Qa5 {[%clk 0:00:03.7]} 64... Qg6+ {[%clk 0:00:05.2]} 65.
Kh4 {[%clk 0:00:03.8]} 65... Kh6 {[%clk 0:00:04.4]} 66. Qd2+ {[%clk 0:00:02.8]}
66... Kg7 {[%clk 0:00:04.5]} 67. Qa5 {[%clk 0:00:03.7]} 67... Qf6+ {[%clk
0:00:04.8]} 68. Kg3 {[%clk 0:00:03.8]} 68... Qd6+ {[%clk 0:00:04.6]} 69. Kf3
{[%clk 0:00:04.1]} 69... Qc6+ {[%clk 0:00:05.1]} 70. Kg4 {[%clk 0:00:04]} 70...
Qb5 {[%clk 0:00:05.4]} 71. Qc3+ {[%clk 0:00:03.6]} 71... Kg6 {[%clk 0:00:06]}
72. Qc2+ {[%clk 0:00:03.5]} 72... f5+ {[%clk 0:00:06.5]} 73. Kf4 {[%clk
0:00:03.8]} 73... Qb4+ {[%clk 0:00:06]} 74. Ke5 {[%clk 0:00:04.1]} 74... Qe7+
{[%clk 0:00:06.4]} 75. Kf4 {[%clk 0:00:04]} 75... Qd6+ {[%clk 0:00:06]} 76. Kf3
{[%clk 0:00:03.5]} 76... a5 {[%clk 0:00:06.4]} 77. Qa4 {[%clk 0:00:02.1]} 77...
Qe5 {[%clk 0:00:05.8]} 78. Qc6+ {[%clk 0:00:02.1]} 78... Kg5 {[%clk 0:00:05]}
79. Qc1+ {[%clk 0:00:02.3]} 79... Kg6 {[%clk 0:00:05.2]} 80. Qc6+ {[%clk
0:00:02.4]} 80... Kh5 {[%clk 0:00:05.3]} 81. Qc1 {[%clk 0:00:01.8]} 81... a4
{[%clk 0:00:04.9]} 82. Qd1 {[%clk 0:00:01.1]} 82... Qe4+ {[%clk 0:00:05.2]} 83.
Kf2+ {[%clk 0:00:01.4]} 83... Kg5 {[%clk 0:00:05.7]} 84. Qg1+ {[%clk 0:00:01.8]}
84... Kf6 {[%clk 0:00:05.8]} 85. Qa1+ {[%clk 0:00:01.9]} 85... Kg6 {[%clk
0:00:05.9]} 86. Qb1 {[%clk 0:00:02.2]} 86... Qxb1 {[%clk 0:00:05.5]} 0-1

[Event "Early-Titled-Tuesday-Blitz-February-20-2024"]
[Site "Chess.com"]
[Date "2024.02.20"]
[Round "3"]
[White "Dubs123"]
[Black "HamedWafa4"]
[Result "1/2-1/2"]
[WhiteElo "2376"]
[BlackElo "2711"]
[TimeControl "180+1"]
[EndTime "8:30:43 PST"]
[Termination "Game drawn by repetition"]

1. b3 {[%clk 0:02:59.8]} 1... e5 {[%clk 0:02:56]} 2. Bb2 {[%clk 0:02:59.5]} 2...
Nc6 {[%clk 0:02:55.3]} 3. e3 {[%clk 0:02:58.4]} 3... d5 {[%clk 0:02:54.3]} 4.
Bb5 {[%clk 0:02:54.9]} 4... Bd6 {[%clk 0:02:50.2]} 5. Nf3 {[%clk 0:02:53.7]}
5... f6 {[%clk 0:02:49.4]} 6. c4 {[%clk 0:02:41.1]} 6... Ne7 {[%clk 0:02:46.2]}
7. d4 {[%clk 0:02:33.8]} 7... e4 {[%clk 0:02:45.6]} 8. Nfd2 {[%clk 0:02:18.7]}
8... a6 {[%clk 0:02:45.1]} 9. Ba4 {[%clk 0:02:14.7]} 9... b5 {[%clk 0:02:45.1]}
10. cxb5 {[%clk 0:02:14]} 10... Nb4 {[%clk 0:02:45.3]} 11. O-O {[%clk
0:02:12.1]} 11... Nd3 {[%clk 0:02:42.6]} 12. Ba3 {[%clk 0:02:10.8]} 12... O-O
{[%clk 0:02:40.8]} 13. Qc2 {[%clk 0:01:45.2]} 13... axb5 {[%clk 0:02:28.2]} 14.
Bxd6 {[%clk 0:01:44.2]} 14... Qxd6 {[%clk 0:02:26.9]} 15. Bxb5 {[%clk
0:01:43.4]} 15... c6 {[%clk 0:02:27.2]} 16. Bxd3 {[%clk 0:01:42.7]} 16... exd3
{[%clk 0:02:28.1]} 17. Qc5 {[%clk 0:01:26.5]} 17... Qe6 {[%clk 0:02:06.3]} 18.
Nc3 {[%clk 0:01:12.9]} 18... Ng6 {[%clk 0:01:59.9]} 19. Na4 {[%clk 0:01:08.3]}
19... Ba6 {[%clk 0:01:39.2]} 20. Rfe1 {[%clk 0:00:58]} 20... Rac8 {[%clk
0:01:34.1]} 21. Qc3 {[%clk 0:00:54.1]} 21... Qg4 {[%clk 0:01:23]} 22. h3 {[%clk
0:00:38.4]} 22... Qf5 {[%clk 0:01:17.2]} 23. Nf3 {[%clk 0:00:31.7]} 23... Rc7
{[%clk 0:01:01.8]} 24. Nc5 {[%clk 0:00:31.5]} 24... Bc8 {[%clk 0:01:02.2]} 25.
Qxd3 {[%clk 0:00:26.2]} 25... Qh5 {[%clk 0:01:02.4]} 26. e4 {[%clk 0:00:19.5]}
26... dxe4 {[%clk 0:00:44.2]} 27. Rxe4 {[%clk 0:00:18.3]} 27... Bf5 {[%clk
0:00:41]} 28. Qc4+ {[%clk 0:00:17.4]} 28... Kh8 {[%clk 0:00:41.5]} 29. Re3
{[%clk 0:00:09]} 29... Nf4 {[%clk 0:00:37.2]} 30. Ne6 {[%clk 0:00:08]} 30...
Nxe6 {[%clk 0:00:31.7]} 31. Rxe6 {[%clk 0:00:08.9]} 31... Bxe6 {[%clk 0:00:32]}
32. Qxe6 {[%clk 0:00:09.5]} 32... Re8 {[%clk 0:00:26.4]} 33. Qc4 {[%clk
0:00:07.9]} 33... Rcc8 {[%clk 0:00:25.1]} 34. Rc1 {[%clk 0:00:08]} 34... Qa5
{[%clk 0:00:25.1]} 35. a4 {[%clk 0:00:07.7]} 35... Qb6 {[%clk 0:00:17.4]} 36. b4
{[%clk 0:00:07.1]} 36... Rb8 {[%clk 0:00:17.9]} 37. Qxc6 {[%clk 0:00:06.7]}
37... Qxb4 {[%clk 0:00:18.1]} 38. d5 {[%clk 0:00:05.7]} 38... Qf4 {[%clk
0:00:13.8]} 39. Rc4 {[%clk 0:00:03.2]} 39... Qf5 {[%clk 0:00:09.8]} 40. Rc1
{[%clk 0:00:04.1]} 40... Red8 {[%clk 0:00:08.8]} 41. Nd4 {[%clk 0:00:04.2]}
41... Qxd5 {[%clk 0:00:08.7]} 42. Qxd5 {[%clk 0:00:04.6]} 42... Rxd5 {[%clk
0:00:09.6]} 43. Nc6 {[%clk 0:00:05]} 43... Rc8 {[%clk 0:00:09.6]} 44. Re1 {[%clk
0:00:03.3]} 44... Rc5 {[%clk 0:00:08.8]} 45. Na7 {[%clk 0:00:03.5]} 45... Ra8
{[%clk 0:00:08.8]} 46. Nb5 {[%clk 0:00:04.1]} 46... Rcc8 {[%clk 0:00:09.3]} 47.
Nd6 {[%clk 0:00:04.1]} 47... Rd8 {[%clk 0:00:09.3]} 48. Nf7+ {[%clk 0:00:04.6]}
48... Kg8 {[%clk 0:00:10]} 49. Nxd8 {[%clk 0:00:05.5]} 49... Rxd8 {[%clk
0:00:09.8]} 50. Ra1 {[%clk 0:00:06.2]} 50... Ra8 {[%clk 0:00:09.6]} 51. a5
{[%clk 0:00:07.1]} 51... Ra6 {[%clk 0:00:10.3]} 52. f3 {[%clk 0:00:07.8]} 52...
Kf7 {[%clk 0:00:11.1]} 53. Kf2 {[%clk 0:00:08.4]} 53... Ke6 {[%clk 0:00:11.8]}
54. Ke3 {[%clk 0:00:09.1]} 54... Kd5 {[%clk 0:00:12.6]} 55. Kf4 {[%clk
0:00:09.4]} 55... g6 {[%clk 0:00:12]} 56. g4 {[%clk 0:00:09.5]} 56... Ke6 {[%clk
0:00:10.4]} 57. h4 {[%clk 0:00:08.8]} 57... h6 {[%clk 0:00:10.1]} 58. Kg3 {[%clk
0:00:09.3]} 58... Ke5 {[%clk 0:00:10.2]} 59. f4+ {[%clk 0:00:09.3]} 59... Ke4
{[%clk 0:00:10.4]} 60. Ra4+ {[%clk 0:00:09.9]} 60... Ke3 {[%clk 0:00:10.7]} 61.
f5 {[%clk 0:00:09.2]} 61... g5 {[%clk 0:00:09.7]} 62. hxg5 {[%clk 0:00:08.6]}
62... hxg5 {[%clk 0:00:10.6]} 63. Ra3+ {[%clk 0:00:08.8]} 63... Ke4 {[%clk
0:00:11]} 64. Ra1 {[%clk 0:00:07.6]} 64... Ke5 {[%clk 0:00:10.5]} 65. Kf3 {[%clk
0:00:07.4]} 65... Kd5 {[%clk 0:00:10.5]} 66. Ke3 {[%clk 0:00:07.5]} 66... Ke5
{[%clk 0:00:11]} 67. Ra4 {[%clk 0:00:07.8]} 67... Kd5 {[%clk 0:00:11.1]} 68. Ra1
{[%clk 0:00:08.4]} 68... Ke5 {[%clk 0:00:11.6]} 69. Kf3 {[%clk 0:00:08.6]} 69...
Kd5 {[%clk 0:00:11.8]} 70. Ra2 {[%clk 0:00:08.7]} 70... Ke5 {[%clk 0:00:12.3]}
71. Re2+ {[%clk 0:00:09.3]} 71... Kd5 {[%clk 0:00:12.8]} 72. Re6 {[%clk
0:00:08.6]} 72... Rxa5 {[%clk 0:00:13.4]} 73. Rxf6 {[%clk 0:00:09.1]} 73... Ra3+
{[%clk 0:00:14.1]} 74. Ke2 {[%clk 0:00:08.8]} 74... Ke5 {[%clk 0:00:14.9]} 75.
Rg6 {[%clk 0:00:08.7]} 75... Kf4 {[%clk 0:00:14.3]} 76. f6 {[%clk 0:00:09.1]}
76... Re3+ {[%clk 0:00:13.5]} 77. Kf2 {[%clk 0:00:09.2]} 77... Rf3+ {[%clk
0:00:14]} 78. Kg2 {[%clk 0:00:09.3]} 78... Rg3+ {[%clk 0:00:14.3]} 79. Kh2
{[%clk 0:00:09.7]} 79... Rf3 {[%clk 0:00:12.4]} 80. f7 {[%clk 0:00:09.1]} 80...
Kxg4 {[%clk 0:00:13.1]} 81. Rg7 {[%clk 0:00:09.4]} 81... Rf2+ {[%clk 0:00:13.3]}
82. Kg1 {[%clk 0:00:09.6]} 82... Rf5 {[%clk 0:00:13.8]} 83. Kg2 {[%clk
0:00:09.4]} 83... Rf6 {[%clk 0:00:13.7]} 84. Kg1 {[%clk 0:00:09.2]} 84... Kh4
{[%clk 0:00:13.1]} 85. Kg2 {[%clk 0:00:08.9]} 85... g4 {[%clk 0:00:13.4]} 86.
Rh7+ {[%clk 0:00:09]} 86... Kg5 {[%clk 0:00:14.1]} 87. Rg7+ {[%clk 0:00:09.4]}
87... Kf4 {[%clk 0:00:14.5]} 88. Kf2 {[%clk 0:00:08.8]} 88... Rf5 {[%clk
0:00:13.2]} 89. Kg2 {[%clk 0:00:08.8]} 89... Rf6 {[%clk 0:00:13.8]} 90. Kf2
{[%clk 0:00:08.9]} 90... Rf5 {[%clk 0:00:13.8]} 91. Kg2 {[%clk 0:00:09.4]} 91...
Rf6 {[%clk 0:00:13.5]} 1/2-1/2

[Event "Early-Titled-Tuesday-Blitz-February-20-2024"]
[Site "Chess.com"]
[Date "2024.02.20"]
[Round "3"]
[White "Bilan_Danila"]
[Black "paladin_ll"]
[Result "1/2-1/2"]
[WhiteElo "2481"]
[BlackElo "2221"]
[TimeControl "180+1"]
[EndTime "8:30:46 PST"]
[Termination "Game drawn by repetition"]

1. d4 {[%clk 0:03:00.9]} 1... Nf6 {[%clk 0:02:59.8]} 2. Nf3 {[%clk 0:03:01.3]}
2... c5 {[%clk 0:02:58.4]} 3. e3 {[%clk 0:03:01.5]} 3... cxd4 {[%clk 0:02:58.2]}
4. exd4 {[%clk 0:03:02.4]} 4... d5 {[%clk 0:02:59.1]} 5. Bd3 {[%clk 0:03:01.9]}
5... Nc6 {[%clk 0:02:58.6]} 6. c3 {[%clk 0:03:01.6]} 6... Bg4 {[%clk 0:02:57.3]}
7. h3 {[%clk 0:03:01.1]} 7... Bh5 {[%clk 0:02:54.4]} 8. Bf4 {[%clk 0:02:59.9]}
8... e6 {[%clk 0:02:54.2]} 9. Nbd2 {[%clk 0:03:00.2]} 9... Be7 {[%clk
0:02:52.6]} 10. O-O {[%clk 0:03:00.1]} 10... O-O {[%clk 0:02:52.2]} 11. Re1
{[%clk 0:03:00.5]} 11... Bg6 {[%clk 0:02:52]} 12. Nf1 {[%clk 0:02:57.3]} 12...
a6 {[%clk 0:02:48.8]} 13. a4 {[%clk 0:02:55.4]} 13... Rc8 {[%clk 0:02:48.2]} 14.
Ng3 {[%clk 0:02:54.9]} 14... Na5 {[%clk 0:02:45.1]} 15. Ne5 {[%clk 0:02:54.7]}
15... Bxd3 {[%clk 0:02:44.5]} 16. Qxd3 {[%clk 0:02:52.7]} 16... Nc4 {[%clk
0:02:44.6]} 17. Re2 {[%clk 0:02:52]} 17... Nxe5 {[%clk 0:02:43.9]} 18. Bxe5
{[%clk 0:02:50.5]} 18... Nd7 {[%clk 0:02:41.7]} 19. Bf4 {[%clk 0:02:47.3]} 19...
Nf6 {[%clk 0:02:41.1]} 20. Rae1 {[%clk 0:02:41.1]} 20... Qd7 {[%clk 0:02:39.9]}
21. a5 {[%clk 0:02:41]} 21... Qb5 {[%clk 0:02:37.1]} 22. Qxb5 {[%clk 0:02:40.8]}
22... axb5 {[%clk 0:02:38]} 23. Ra1 {[%clk 0:02:38.1]} 23... Rc4 {[%clk
0:02:35.1]} 24. a6 {[%clk 0:02:30.4]} 24... bxa6 {[%clk 0:02:34.6]} 25. Rxa6
{[%clk 0:02:31.3]} 25... b4 {[%clk 0:02:35.4]} 26. Bd2 {[%clk 0:02:28.5]} 26...
bxc3 {[%clk 0:02:35.2]} 27. bxc3 {[%clk 0:02:29.4]} 27... h6 {[%clk 0:02:31.3]}
28. Nf5 {[%clk 0:02:26.8]} 28... exf5 {[%clk 0:02:28]} 29. Rxe7 {[%clk
0:02:26.6]} 29... Ne4 {[%clk 0:02:28.5]} 30. Be3 {[%clk 0:02:23.5]} 30... Nxc3
{[%clk 0:02:25.6]} 31. Raa7 {[%clk 0:02:18.8]} 31... f4 {[%clk 0:02:23.7]} 32.
Bxf4 {[%clk 0:02:14.8]} 32... Rxd4 {[%clk 0:02:19.7]} 33. Be5 {[%clk 0:02:12.7]}
33... Rd1+ {[%clk 0:02:11.4]} 34. Kh2 {[%clk 0:02:13]} 34... Ne4 {[%clk
0:02:10.6]} 35. f3 {[%clk 0:02:09.2]} 35... Ng5 {[%clk 0:02:02.9]} 36. h4 {[%clk
0:02:04.9]} 36... Nh7 {[%clk 0:01:56.8]} 37. Rad7 {[%clk 0:02:00.1]} 37... Nf6
{[%clk 0:01:56.1]} 38. Bxf6 {[%clk 0:01:51.7]} 38... gxf6 {[%clk 0:01:56]} 39.
Rd6 {[%clk 0:01:52.6]} 39... Kg7 {[%clk 0:01:50.5]} 40. Red7 {[%clk 0:01:52.5]}
40... Re8 {[%clk 0:01:47.2]} 41. Rxd5 {[%clk 0:01:52.5]} 41... Rb1 {[%clk
0:01:46]} 42. Rd2 {[%clk 0:01:46.3]} 42... Rb4 {[%clk 0:01:43]} 43. Kg3 {[%clk
0:01:42.6]} 43... Rc8 {[%clk 0:01:41.3]} 44. Re2 {[%clk 0:01:40.1]} 44... Rb5
{[%clk 0:01:31.8]} 45. Ree7 {[%clk 0:01:38.4]} 45... Rf8 {[%clk 0:01:32.3]} 46.
Rd4 {[%clk 0:01:38]} 46... Re5 {[%clk 0:01:31.1]} 47. Rb7 {[%clk 0:01:34.5]}
47... Rfe8 {[%clk 0:01:30.9]} 48. Rdd7 {[%clk 0:01:33.7]} 48... Rf8 {[%clk
0:01:30.3]} 49. Kg4 {[%clk 0:01:32.2]} 49... h5+ {[%clk 0:01:26.8]} 50. Kf4
{[%clk 0:01:31.4]} 50... Re6 {[%clk 0:01:24.6]} 51. g4 {[%clk 0:01:27.4]} 51...
hxg4 {[%clk 0:01:15]} 52. fxg4 {[%clk 0:01:28.3]} 52... Re1 {[%clk 0:01:15.1]}
53. Rb6 {[%clk 0:01:22.9]} 53... Rf1+ {[%clk 0:01:12.8]} 54. Kg3 {[%clk
0:01:23.4]} 54... Rg1+ {[%clk 0:01:12]} 55. Kh3 {[%clk 0:01:23.3]} 55... Rh1+
{[%clk 0:01:12]} 56. Kg3 {[%clk 0:01:23]} 56... Rg1+ {[%clk 0:01:11.7]} 57. Kf3
{[%clk 0:01:23.5]} 57... Rf1+ {[%clk 0:01:08]} 58. Kg2 {[%clk 0:01:23.2]} 58...
Rc1 {[%clk 0:01:06.9]} 59. Rdd6 {[%clk 0:01:20.1]} 59... Rc2+ {[%clk 0:01:02.9]}
60. Kf3 {[%clk 0:01:16.2]} 60... Rc3+ {[%clk 0:01:01.5]} 61. Kf2 {[%clk
0:01:16.6]} 61... Rc2+ {[%clk 0:01:01.4]} 62. Ke3 {[%clk 0:01:17.1]} 62... Rc3+
{[%clk 0:00:59.8]} 63. Ke4 {[%clk 0:01:11.5]} 63... Rc4+ {[%clk 0:00:56.5]} 64.
Rd4 {[%clk 0:00:59.9]} 64... Rxd4+ {[%clk 0:00:56.2]} 65. Kxd4 {[%clk
0:01:00.8]} 65... Re8 {[%clk 0:00:55.1]} 66. Rb4 {[%clk 0:00:57.6]} 66... Re1
{[%clk 0:00:54.1]} 67. Kd3 {[%clk 0:00:57.5]} 67... Rh1 {[%clk 0:00:48.2]} 68.
h5 {[%clk 0:00:54.3]} 68... Re1 {[%clk 0:00:45.2]} 69. Re4 {[%clk 0:00:51.8]}
69... Rf1 {[%clk 0:00:42.6]} 70. Ke3 {[%clk 0:00:51.7]} 70... Re1+ {[%clk
0:00:40.4]} 71. Kf3 {[%clk 0:00:51.4]} 71... Rf1+ {[%clk 0:00:39]} 72. Kg3
{[%clk 0:00:51.7]} 72... Rb1 {[%clk 0:00:38.4]} 73. Re3 {[%clk 0:00:49.4]} 73...
Rb5 {[%clk 0:00:37.7]} 74. Rf3 {[%clk 0:00:49.8]} 74... Rc5 {[%clk 0:00:36.8]}
75. Kh4 {[%clk 0:00:50.1]} 75... Rb5 {[%clk 0:00:36.6]} 76. Rc3 {[%clk
0:00:46.2]} 76... Ra5 {[%clk 0:00:36.1]} 77. Kg3 {[%clk 0:00:46.4]} 77... Rb5
{[%clk 0:00:35.2]} 78. Rd3 {[%clk 0:00:46.2]} 78... Ra5 {[%clk 0:00:35.4]} 79.
Kf4 {[%clk 0:00:45.5]} 79... Ra4+ {[%clk 0:00:35.7]} 80. Kf3 {[%clk 0:00:45.2]}
80... Ra5 {[%clk 0:00:35.7]} 81. Rd4 {[%clk 0:00:45.6]} 81... Rb5 {[%clk
0:00:35.4]} 82. Kf4 {[%clk 0:00:46.1]} 82... Ra5 {[%clk 0:00:33.9]} 83. Ke4
{[%clk 0:00:46.7]} 83... Rb5 {[%clk 0:00:33.7]} 84. Rd5 {[%clk 0:00:47.1]} 84...
Rb1 {[%clk 0:00:28.8]} 85. Kf4 {[%clk 0:00:44.2]} 85... Rb4+ {[%clk 0:00:28.3]}
86. Kg3 {[%clk 0:00:43.5]} 86... Rb3+ {[%clk 0:00:28.3]} 87. Kh4 {[%clk
0:00:44.1]} 87... Rb4 {[%clk 0:00:29.1]} 88. Rc5 {[%clk 0:00:43.5]} 88... Ra4
{[%clk 0:00:29.2]} 89. Rf5 {[%clk 0:00:43.7]} 89... Rb4 {[%clk 0:00:29]} 90. h6+
{[%clk 0:00:44.2]} 90... Kxh6 {[%clk 0:00:25.9]} 91. Rxf6+ {[%clk 0:00:44.2]}
91... Kg7 {[%clk 0:00:26.5]} 92. Rc6 {[%clk 0:00:42.5]} 92... Ra4 {[%clk
0:00:24.4]} 93. Kg5 {[%clk 0:00:42.7]} 93... Ra5+ {[%clk 0:00:23.2]} 94. Kh4
{[%clk 0:00:42.9]} 94... Rb5 {[%clk 0:00:22.3]} 95. g5 {[%clk 0:00:42.4]} 95...
Rb1 {[%clk 0:00:20.3]} 96. Kh5 {[%clk 0:00:42.8]} 96... Rh1+ {[%clk 0:00:20.1]}
97. Kg4 {[%clk 0:00:43.4]} 97... Rg1+ {[%clk 0:00:20.5]} 98. Kf5 {[%clk
0:00:43.9]} 98... Rf1+ {[%clk 0:00:20.8]} 99. Kg4 {[%clk 0:00:44.3]} 99... Rg1+
{[%clk 0:00:21.1]} 100. Kf4 {[%clk 0:00:44.6]} 100... Rf1+ {[%clk 0:00:21.4]}
101. Kg3 {[%clk 0:00:45]} 101... Rg1+ {[%clk 0:00:21.4]} 102. Kh4 {[%clk
0:00:45.6]} 102... Rh1+ {[%clk 0:00:21.4]} 103. Kg4 {[%clk 0:00:46.3]} 103...
Rg1+ {[%clk 0:00:21.9]} 1/2-1/2